Cogmind - Beta 13 @@@ ROGUE MODE // 2024.04.09 @ 10:05:14 Player: graour Result: Destroyed by G-47 Trooper with Particle Gun Performance ------------- Evolutions (2) 1000 Regions Visited (8) 1600 Robots Destroyed (65) 325 Value Destroyed (1601) 1601 Prototype IDs (2) 40 Alien Tech Used (0) 0 Bonus (1597) 1597 TOTAL SCORE: 6163 Bonus ------- High Alert Combat Kills 141 Follower Combat Kills 56 Entered Garrisons 400 Used RIF Installer 1000 Cogmind --------- Core Integrity 0/550 Matter 111/300 Energy 215/220 System Corruption 1% Temperature Cool (9) Movement Flying (114) Ox1 Location -8/Garrison Parts ------- > --- POWER (2) -------- Light Nuclear Core Light Nuclear Core > --- PROPULSION (4) --- Flight Unit Flight Unit Flight Unit > --- UTILITY (3) ------ Improved Heat Sink Improved Heat Sink Authchip [R/Combat] > --- WEAPON (2) ------- Light Assault Rifle Makeshift Spear > --- INVENTORY (5) ---- Light Deuterium Engine Light Nuclear Core Flight Unit Improved Datajack Remote Datajack Peak State ------------ > --- POWER ------------ Nuclear Core Heavy Deuterium Engine > --- PROPULSION ------- Gravmag System Gravmag System Gravmag System Gravmag System > --- UTILITY ---------- Weight Redist. System ECM Suite Authchip [R/Combat] > --- WEAPON ----------- Remote Datajack Makeshift Spear > --- INVENTORY -------- Ion Engine Light Ion Engine VTOL Module Light Assault Rifle Improved Datajack [Rating: 39] Favorites ----------- Power Ion Engine Engine Ion Engine Power Core Light Nuclear Core Propulsion Flight Unit Leg Carbon-fiber Leg Wheel Wheel Hover Unit Gravmag System Flight Unit Flight Unit Utility Weight Redist. System Device Weight Redist. System Storage Small Storage Unit Processor Signal Interpreter Hackware Authchip [R/Combat] Weapon Light Assault Rifle Energy Gun Small Laser Ballistic Gun Light Assault Rifle Ballistic Cannon Flak Cannon Launcher Grenade Launcher Special Weapon Remote Datajack Piercing Weapon Makeshift Spear Special Melee Weapon Improved Datajack Build | -11 -10 -10 -10 -9 -8 -8 -8 -8 ------- Run | Yrd Mat Min Exi Min Mat Gar Mat Gar Slots Evolved 4 | . . . . . 4 . . . Power 1 | . . . . . 1 . . . Propulsion 2 | . . . . . 2 . . . Utility 1 | . . . . . 1 . . . Weapon . | . . . . . . . . . Parts Attached 92 | 6 9 1 8 5 8 14 27 14 Power 22 | 1 2 . . 1 3 5 8 2 Engine 17 | 1 2 . . . 3 5 6 . Core 5 | . . . . 1 . . 2 2 Reactor . | . . . . . . . . . Propulsion 39 | 2 2 . 6 2 3 4 14 6 Treads . | . . . . . . . . . Leg 1 | . . . . . . . 1 . Wheel 2 | 2 . . . . . . . . Hover 5 | . . . . . . . 5 . Flight 31 | . 2 . 6 2 3 4 8 6 Utility 12 | 1 3 . 1 . 1 1 1 4 Device 6 | . 3 . . . 1 . . 2 Storage 1 | 1 . . . . . . . . Processor 2 | . . . 1 . . . 1 . Hackware 3 | . . . . . . 1 . 2 Protection . | . . . . . . . . . Artifact . | . . . . . . . . . Weapon 19 | 2 2 1 1 2 1 4 4 2 Energy Gun 2 | . 1 . . 1 . . . . Energy Cannon . | . . . . . . . . . Ballistic Gun 8 | 2 1 . . . 1 2 1 1 Ballistic Cannon 1 | . . . . . . . 1 . Launcher 2 | . . 1 . 1 . . . . Special Weapon 2 | . . . . . . 1 1 . Impact Weapon . | . . . . . . . . . Slashing Weapon . | . . . . . . . . . Piercing Weapon 3 | . . . 1 . . 1 1 . Special Melee Weapon 1 | . . . . . . . . 1 Unidentified Prototypes 2 | . . . . . . . 2 . Parts Lost 28 | . 1 1 . 2 1 6 8 9 Power 4 | . . . . . . 3 . 1 Propulsion 14 | . 1 . . 1 1 2 4 5 Utility 6 | . . 1 . . . . 3 2 Weapon 4 | . . . . 1 . 1 1 1 Highest Loss Streak 6 | . 1 1 . 1 1 3 3 6 To Critical Strikes . | . . . . . . . . . Average Slot Usage (%) 88 | . 93 90 87 94 88 93 83 74 Engine 10 | . 14 14 14 2 7 12 10 2 Core 4 | . . . . 11 9 3 7 7 Wheel 4 | . 16 . . . . . . . Hover 3 | . . . . . . . 17 . Flight 20 | . 6 28 26 27 25 35 14 31 Device 12 | . 15 19 14 14 18 18 7 4 Storage 2 | . 10 . . . . . . . Processor 3 | . . . 3 14 9 5 . 3 Hackware 2 | . . . . . . . 9 7 Energy Gun 1 | . 2 2 . 1 9 . . . Ballistic Gun 13 | . 25 14 14 14 9 12 2 1 Ballistic Cannon 1 | . . . . . . . 2 5 Launcher 2 | . . 11 7 5 . . . . Piercing Weapon 4 | . . . 6 2 . 1 8 9 Naked Turns . | . . . . . . . . . Heaviest Build 25 | 13 14 11 9 9 14 14 25 15 Greatest Support 42 | 26 26 14 14 14 22 22 42 16 Greatest Overweight (x) 6 | 4 1 . . . . . 6 1 Average Overweight (x) . | . . . . . . . . . Largest Inventory Capacity 8 | 8 8 5 5 5 5 5 5 5 Average Capacity 5 | 6 7 5 5 5 5 5 5 5 Most Carried 8 | 4 8 5 5 5 4 5 5 5 Average Carried 4 | 1 6 5 4 4 2 4 4 4 Final Capacity 8 | 8 5 5 5 5 5 5 5 5 Final Carried 5 | 4 5 5 4 4 4 5 5 5 Class Distribution -------------------- 44% | Scavenger-Mutant 36% | Mutant 15% | Scavenger-Sprinter Dominant Class ---------------- Mutant | -10/Materials Scavenger-Mutant | -10/Mines Scavenger-Mutant | -10/Exiles Scavenger-Mutant | -9/Mines Scavenger-Mutant | -8/Materials Scavenger-Sprinter | -8/Garrison Mutant | -8/Materials Scavenger-Mutant | -8/Garrison Resources | -11 -10 -10 -10 -9 -8 -8 -8 -8 ----------- Run | Yrd Mat Min Exi Min Mat Gar Mat Gar Matter Collected 1520 | 229 307 2 . 278 . 114 332 258 Remotely . | . . . . . . . . . Salvage Created 1701 | . 648 7 . 152 . 156 480 258 Parts 119 | . 41 4 . 8 . 18 28 20 Haulers Intercepted 1 | . 1 . . . . . . . Recyclers Shooed . | . . . . . . . . . Parts Field Recycled . | . . . . . . . . . Retrieved Matter . | . . . . . . . . . Parts Self-Destructed . | . . . . . . . . . Prevented . | . . . . . . . . . Kills | -11 -10 -10 -10 -9 -8 -8 -8 -8 ------- Run | Yrd Mat Min Exi Min Mat Gar Mat Gar Combat Hostiles Destroyed 57 | . 13 3 . 7 . 11 12 11 Melee 13 | . . . . . . . 10 3 Guns 29 | . 13 1 . 4 . 11 . . Cannons 10 | . . . . . . . 2 8 AOE 5 | . . 2 . 3 . . . . Classes Destroyed 13 | . 6 1 . 2 . 1 3 . Builder 1 | . . . . . . . 1 . Tunneler 1 | . . 1 . . . . . . Hauler 1 | . 1 . . . . . . . Recycler 2 | . 2 . . . . . . . Operator 2 | . 2 . . . . . . . Watcher 3 | . 2 . . . . . 1 . Swarmer 27 | . 6 3 . . . 10 4 4 Grunt 18 | . 7 . . 4 . . 4 3 Sentry 5 | . . . . . . . 3 2 Demolisher 1 | . . . . 1 . . . . Hunter 3 | . . . . . . . 1 2 Programmer 1 | . . . . . . 1 . . Assembled 2 | . . . . 2 . . . . Best Kill Streak 9 | . 9 4 . 3 . 7 4 6 Combat Bots Only 7 | . 4 3 . 3 . 7 4 6 Max Kills in Single Turn 2 | . 1 2 . 2 . 2 1 2 Gunslinging 1 | . . . . . . 1 . . Exploded 2 | . . 1 . 2 . . . . Melee 1 | . . . . . . . 1 1 Uniques/NPCs Destroyed . | . . . . . . . . . Combat | -11 -10 -10 -10 -9 -8 -8 -8 -8 -------- Run | Yrd Mat Min Exi Min Mat Gar Mat Gar Hostile Shots Fired 293 | . 43 4 . 24 7 65 80 70 Missed 89 | . 12 2 . 11 1 21 18 24 Damage Taken 2568 | . 317 53 . 334 91 400 741 632 Core 746 | . 57 20 . 110 18 72 172 297 Absorbed by Shields . | . . . . . . . . . Core Remaining (%) 62 | 100 . . . 25 . . . . Volleys Fired 145 | . 54 3 . 28 2 18 10 30 Largest 2 | . 2 2 . 2 2 2 1 1 Hottest 70 | . 70 50 . 60 65 65 44 44 Shots Fired 233 | . 108 6 . 39 4 36 10 30 Gun 181 | . 108 3 . 30 4 36 . . Cannon 40 | . . . . . . . 10 30 Launcher 12 | . . 3 . 9 . . . . Special . | . . . . . . . . . Kinetic 214 | . 107 3 . 28 2 34 10 30 Thermal 7 | . 1 . . 2 2 2 . . Explosive 12 | . . 3 . 9 . . . . Electromagnetic . | . . . . . . . . . Robot Hit Streak 14 | . 14 2 . 3 3 5 8 10 Robot Miss Streak 7 | . 4 1 . 3 2 5 4 7 Penetration Max . | . . . . . . . . . Secondary Targets 5 | . 2 . . . . 3 . . Max Gunslinging Chain 1 | . 1 . . . . 1 . . Shots Hit Robots 179 | . 68 3 . 17 3 21 31 36 Core Hits 131 | . 36 5 . 15 . 12 24 39 Critical Kills 1 | . 1 . . . . . . . Critical Parts Destroyed 1 | . 1 . . . . . . . Critical Strikes 6 | . 2 . . . . . 4 . Destroy 2 | . 2 . . . . . . . Impale 4 | . . . . . . . 4 . Melee Attacks 55 | . . . 6 . . 1 38 10 Impact . | . . . . . . . . . Slashing . | . . . . . . . . . Piercing 54 | . . . 6 . . 1 38 9 Sneak Attacks 2 | . . . . . . . 1 1 Combat Hostiles 1 | . . . . . . . . 1 Follow-up Attacks . | . . . . . . . . . Damage Inflicted 3228 | . 724 266 . 347 38 298 826 729 Guns 1185 | . 724 8 . 117 38 298 . . Cannons 723 | . . . . . . . 208 515 Explosions 488 | . . 258 . 230 . . . . Melee 832 | . . . . . . . 618 214 Ramming . | . . . . . . . . . Kinetic 1849 | . 711 8 . 105 16 286 208 515 Thermal 59 | . 13 . . 12 22 12 . . Explosive 488 | . . 258 . 230 . . . . Electromagnetic . | . . . . . . . . . Impact . | . . . . . . . . . Slashing . | . . . . . . . . . Piercing 832 | . . . . . . . 618 214 Highest Corruption 1 | . . . . . . 1 1 1 Average Corruption 1 | . . . . . . 1 1 1 Corruption Purged . | . . . . . . . . . Corruption Blocked . | . . . . . . . . . Effects 6 | . . . . . . 1 4 1 Message Errors 3 | . . . . . . . 2 1 Matter Fused 1 | . . . . . . 1 . . Data Loss (minor) 2 | . . . . . . . 2 . Overload Shots . | . . . . . . . . . Overflow Damage 97 | . . 43 . 9 . . 44 1 Projectiles 1 | . . . . . . . . 1 Explosions 52 | . . 43 . 9 . . . . Melee 44 | . . . . . . . 44 . Knockbacks 29 | . . . . . . . 3 26 Impact . | . . . . . . . . . Kinetic 22 | . . . . . . . 3 19 Secondary 7 | . . . . . . . . 7 Self-Inflicted Damage 86 | . . 40 . 46 . . . . Shots 3 | . . 1 . 2 . . . . Rammed . | . . . . . . . . . Targets Rammed . | . . . . . . . . . Kicked . | . . . . . . . . . Crushed . | . . . . . . . . . Highest Temperature 132 | . 34 16 . 54 22 49 132 88 Average Temperature 19 | . 6 11 . 15 6 16 32 24 Received Heat Transfer 642 | . 126 . . 39 63 . 261 153 Siege Activations . | . . . . . . . . . Robots Corrupted . | . . . . . . . . . Combat Hostiles . | . . . . . . . . . Parts Fried . | . . . . . . . . . Impact Corruptions . | . . . . . . . . . Robots Melted . | . . . . . . . . . Combat Hostiles . | . . . . . . . . . Parts Melted . | . . . . . . . . . Heat Transferred 137 | . 37 . . 25 50 25 . . Parts Sabotaged . | . . . . . . . . . Parts Stolen . | . . . . . . . . . Parts Stripped . | . . . . . . . . . Power Chain Reactions . | . . . . . . . . . Alert | -11 -10 -10 -10 -9 -8 -8 -8 -8 ------- Run | Yrd Mat Min Exi Min Mat Gar Mat Gar Peak Influence 572 | . 390 139 . 323 384 449 572 489 Initial 269 | . . 27 . . 125 249 218 269 Average 266 | . 170 101 . 208 186 397 393 408 Maximum Alert Level 2 | . 1 . . 1 1 2 2 2 Low Security (%) 33 | 100 54 100 . 41 81 . . . Level 1 41 | . 45 . . 58 18 38 55 29 Level 2 24 | . . . . . . 61 44 70 Level 3 . | . . . . . . . . . Level 4 . | . . . . . . . . . Level 5 . | . . . . . . . . . High Security . | . . . . . . . . . Max Security . | . . . . . . . . . Squads Dispatched 7 | . 4 . . . . . 3 . Investigation 4 | . 3 . . . . . 1 . Extermination . | . . . . . . . . . Reinforcement 3 | . 1 . . . . . 2 . Assault . | . . . . . . . . . Garrison . | . . . . . . . . . Intercept . | . . . . . . . . . Searches Triggered . | . . . . . . . . . Construction Impeded . | . . . . . . . . . Haulers Reinforced . | . . . . . . . . . Active Scanning Responses . | . . . . . . . . . Cargo Convoy Interrupts . | . . . . . . . . . Stealth | -11 -10 -10 -10 -9 -8 -8 -8 -8 --------- Run | Yrd Mat Min Exi Min Mat Gar Mat Gar Distress Signals 3 | . 1 . . . . . 2 . Communications Jammed . | . . . . . . . . . Distress Signals . | . . . . . . . . . Times Spotted 110 | . 26 2 . 14 9 17 30 12 Peak Tracking Total 8 | . 5 2 . 4 8 6 6 7 Tactical Retreats 17 | . 7 . . 1 2 2 3 2 Traps | -11 -10 -10 -10 -9 -8 -8 -8 -8 ------- Run | Yrd Mat Min Exi Min Mat Gar Mat Gar Traps Triggered 4 | . 2 . . . . 1 . 1 Indirectly . | . . . . . . . . . Trap Hack Attempts . | . . . . . . . . . Triggered . | . . . . . . . . . Disarmed . | . . . . . . . . . Reprogrammed . | . . . . . . . . . Reused . | . . . . . . . . . Traps Extracted . | . . . . . . . . . Installed . | . . . . . . . . . Triggered . | . . . . . . . . . Machines | -11 -10 -10 -10 -9 -8 -8 -8 -8 ---------- Run | Yrd Mat Min Exi Min Mat Gar Mat Gar Machines Disabled 1 | . . . . 1 . . . . Max in Single Turn . | . . . . . . . . . Machines Repaired . | . . . . . . . . . Machines Dismantled . | . . . . . . . . . Machines Sabotaged . | . . . . . . . . . Overloaded Fab Kills . | . . . . . . . . . Hacking | -11 -10 -10 -10 -9 -8 -8 -8 -8 --------- Run | Yrd Mat Min Exi Min Mat Gar Mat Gar Machines Accessed 19 | . 7 . 4 . 2 1 3 2 Terminals 13 | . 7 . . . 1 1 2 2 Fabricators . | . . . . . . . . . Repair Stations . | . . . . . . . . . Recycling Units . | . . . . . . . . . Scanalyzers . | . . . . . . . . . Garrison Access 2 | . . . . . 1 . 1 . Total Hacks 85 | . 20 . 49 . 5 2 6 3 Successful 65 | . 9 . 49 . 3 1 3 . Failed 20 | . 11 . . . 2 1 3 3 Catastrophic 4 | . 1 . . . . . 2 1 Database Lockouts . | . . . . . . . . . Manual 10 | . 5 . . . 2 . 2 1 Terminals 31 | . 20 . . . 2 2 4 3 Fabricators . | . . . . . . . . . Repair Stations . | . . . . . . . . . Recycling Units . | . . . . . . . . . Scanalyzers . | . . . . . . . . . Garrison Access 5 | . . . . . 3 . 2 . Terminal Hacks 60 | . 9 . 49 . . 1 1 . Record 52 | . 3 . 49 . . . . . Unreport Threat 2 | . 2 . . . . . . . Dispatch Records 1 | . 1 . . . . . . . Recall Investigation 2 | . 1 . . . . . 1 . Hauler Manifests 1 | . 1 . . . . . . . Zone Layout 1 | . 1 . . . . . . . Garrison Registry 1 | . . . . . . 1 . . Fabricator Hacks . | . . . . . . . . . Repair Station Hacks . | . . . . . . . . . Recycling Unit Hacks . | . . . . . . . . . Scanalyzer . | . . . . . . . . . Garrison Access Hacks 3 | . . . . . 1 . 2 . Unlock Access 2 | . . . . . 1 . 1 . Coupler Status 1 | . . . . . . . 1 . Unauthorized Hacks 2 | . . . . . 2 . . . Terminals 2 | . . . . . 2 . . . Track 1 | . . . . . 1 . . . Assimilate 1 | . . . . . 1 . . . Fabricators . | . . . . . . . . . Repair Stations . | . . . . . . . . . Recycling Units . | . . . . . . . . . Scanalyzers . | . . . . . . . . . Garrison Access . | . . . . . . . . . Data Cores Recovered 1 | . 1 . . . . . . . Used . | . . . . . . . . . Hacking Detections 13 | . 6 . . . 2 1 2 2 Full Trace Events 5 | . 3 . . . 1 . 1 . Feedback Events . | . . . . . . . . . Feedback Blocked . | . . . . . . . . . Robot Schematics Acquired . | . . . . . . . . . Robots Built . | . . . . . . . . . Authchips . | . . . . . . . . . Time . | . . . . . . . . . Total Robot Build Rating . | . . . . . . . . . Part Schematics Acquired . | . . . . . . . . . Parts Built . | . . . . . . . . . Authchips . | . . . . . . . . . Time . | . . . . . . . . . Total Part Build Rating . | . . . . . . . . . Parts Repaired . | . . . . . . . . . Time . | . . . . . . . . . Parts Recycled . | . . . . . . . . . Recycled Matter . | . . . . . . . . . Retrieved Matter . | . . . . . . . . . Retrieved Components . | . . . . . . . . . Parts Scanalyzed . | . . . . . . . . . Part Schematics Acquired . | . . . . . . . . . Parts Damaged . | . . . . . . . . . Bothacking | -11 -10 -10 -10 -9 -8 -8 -8 -8 ------------ Run | Yrd Mat Min Exi Min Mat Gar Mat Gar Used RIF Installer 2 | . . . . . . 1 . 1 Alert ID Control 1 | . . . . . . . . 1 Robots Hacked . | . . . . . . . . . Non-combat . | . . . . . . . . . Combat . | . . . . . . . . . Robot Hacks Applied . | . . . . . . . . . Relay Couplers Released 4 | . . . . . . 4 . . Programmers 4 | . . . . . . 4 . . Fabnet Peak Effective % . | . . . . . . . . . Robots Rewired 3 | . . . 3 . . . . . Allies Hacked . | . . . . . . . . . Hacks Repelled . | . . . . . . . . . Allies | -11 -10 -10 -10 -9 -8 -8 -8 -8 -------- Run | Yrd Mat Min Exi Min Mat Gar Mat Gar Total Allies 6 | . . 2 3 . 1 . . . Largest Group 3 | . . 2 3 3 . . . . Highest-Rated Group 49 | . . 49 49 37 . . . . Highest-Rated Ally 31 | . . 31 31 21 . . . . Total Orders . | . . . . . . . . . Ally Attacks 23 | . . . . 23 . . . . Total Damage 398 | . . . . 398 . . . . Kills 7 | . . . . 7 . . . . Allies Corrupted . | . . . . . . . . . Allies Melted . | . . . . . . . . . Intel | -11 -10 -10 -10 -9 -8 -8 -8 -8 ------- Run | Yrd Mat Min Exi Min Mat Gar Mat Gar Robot Analysis Total . | . . . . . . . . . Derelict Logs Recovered 3 | . . 1 . 2 . . . . Drone Launches . | . . . . . . . . . Drone Recoveries . | . . . . . . . . . Exploration | -11 -10 -10 -10 -9 -8 -8 -8 -8 ------------- Run | Yrd Mat Min Exi Min Mat Gar Mat Gar Turns Passed 2590 | 82 612 109 443 329 76 218 467 254 Spaces Moved 3352 | 58 447 216 732 633 169 266 489 342 Core 25 | 23 . . . . . . 2 . Treads . | . . . . . . . . . Legs 14 | . . . . . . . 14 . Wheels 308 | 35 273 . . . . . . . Hover 196 | . . . . . . . 196 . Flight 2809 | . 174 216 732 633 169 266 277 342 Fastest Speed 28 | 50 37 37 37 37 28 28 28 28 Average Speed 43 | 119 71 37 37 37 33 28 49 31 Slowest Speed 360 | 250 117 37 40 40 37 34 360 120 Overloaded Moves . | . . . . . . . . . Propulsion Burnouts . | . . . . . . . . . Robots Hopped 18 | . . . 13 1 3 . 1 . Cave-ins Triggered . | . . . . . . . . . Exploration Rate (%) 44 | 5 66 31 73 92 22 48 31 33 Regions Visited 8 Branch Regions 3 Pre-discovered Areas 2 | . . . 1 1 . . . . Known Exits Taken 4 | . . . 1 1 1 . 1 . Unknown Exits Taken 3 | 1 1 1 . . . . . . Scrap Searched 1 | . . . . 1 . . . . Spaces Dug 4 | . . . 1 . . . 3 . Terrain Destroyed 127 | . . 26 1 97 . . 3 . Melee 4 | . . . 1 . . . 3 . Projectile . | . . . . . . . . . AOE 123 | . . 26 . 97 . . . . Terrain Rammed . | . . . . . . . . . Walls Destroyed . | . . . . . . . . . Machines Disabled . | . . . . . . . . . Actions | -11 -10 -10 -10 -9 -8 -8 -8 -8 --------- Run | Yrd Mat Min Exi Min Mat Gar Mat Gar Total 4185 | 67 650 238 884 693 178 369 661 445 Wait 467 | . 119 19 131 24 1 54 74 45 Move 3307 | 57 446 215 705 630 162 264 486 342 Hop 18 | . . . 13 1 3 . 1 . Pick Up 23 | 4 9 . 1 2 1 . 3 3 Fast Attach 56 | 6 3 . 6 1 3 11 16 10 Attach 16 | . 4 . 1 1 3 1 3 3 Detach 7 | . 2 . . . 1 2 2 . Swap 24 | . 2 1 1 3 2 6 8 1 Drop 46 | . 11 . 7 3 . 4 20 1 Fire 145 | . 54 3 . 28 2 18 10 30 Melee 55 | . . . 6 . . 1 38 10 Ram . | . . . . . . . . . Kick . | . . . . . . . . . Crush . | . . . . . . . . . Escape Stasis 8 | . . . . . . 8 . . Rewire 13 | . . . 13 . . . . . Trap . | . . . . . . . . . Miscellaneous . | . . . . . . . . . Route ------- -11/Scrapyard -10/Materials (discovered 3 exits: [*Mat] / [*Min x2]) -10/Mines -10/Exiles (discovered 2 exits: *Min x2) -9/Mines (discovered 2 exits: *Mat x2) -8/Materials -8/Garrison (discovered 3 exits: *Mat x3) -8/Materials -8/Garrison History --------- Turn | Location | Event 6 | -11/Scrapyard | Discovered new exit (range 15) 83 | -11/Scrapyard | Entered Materials 314 | -10/Materials | Build established: Mutant 378 | -10/Materials | Discovered new exit (range 16) 513 | -10/Materials | Discovered new exit (range 13) 660 | -10/Materials | Discovered new exit (range 7) 695 | -10/Materials | Entered Mines 718 | -10/Mines | Met a Derelict bent on vengeance 747 | -10/Mines | Deemed a non-threat by the Exiles lab entrance 747 | -10/Mines | Discovered new exit (range 5) 804 | -10/Mines | Entered Exiles 804 | -10/Exiles | Found Exiles lab destroyed 804 | -10/Exiles | Accompanied by 2 allies 834 | -10/Exiles | Led the pair of lost Derelicts to a safe place 853 | -10/Exiles | Build established: Scavenger-Mutant 965 | -10/Exiles | Learned location of Zion (-7) 1118 | -10/Exiles | Discovered new exit (range 11) 1123 | -10/Exiles | Identified exit to Mines 1165 | -10/Exiles | Discovered exit to Mines (range 15) 1247 | -10/Exiles | Entered Mines 1247 | -9/Mines | Accompanied by 3 allies 1248 | -9/Mines | Assembled infested the area 1253 | -9/Mines | Assisted by a Guerilla fighting off Assembled 1345 | -9/Mines | Learned 2 Materials zone layouts 1487 | -9/Mines | Discovered new exit (range 5) 1488 | -9/Mines | Identified exit to Materials 1535 | -9/Mines | Core integrity fell below 50% 1574 | -9/Mines | Discovered exit to Materials (range 5) 1576 | -9/Mines | Entered Materials 1576 | -8/Materials | Evolved 4 slots: Power x1, Propulsion x2, Utility x1 1651 | -8/Materials | Identified exit to Garrison 1652 | -8/Materials | Entered Garrison 1657 | -8/Garrison | Discovered new exit (range 66) 1657 | -8/Garrison | Discovered new exit (range 60) 1657 | -8/Garrison | Discovered new exit (range 43) 1670 | -8/Garrison | Triggered checkpoint 1714 | -8/Garrison | Lost 3 parts (1p1n1w) 1726 | -8/Garrison | Destroyed 7 combat bots 1788 | -8/Garrison | Lost 3 parts (2p1n) 1826 | -8/Garrison | Triggered checkpoint 1844 | -8/Garrison | Installed Relay Interface Framework 1870 | -8/Garrison | Entered Materials 2091 | -8/Materials | Lost 3 parts (1n2u) 2318 | -8/Materials | Identified exit to Garrison 2337 | -8/Materials | Entered Garrison 2343 | -8/Garrison | Expanded RIF knowledge: Alert ID Control 2368 | -8/Garrison | Triggered checkpoint 2392 | -8/Garrison | Core integrity fell below 50% 2472 | -8/Garrison | Lost 6 parts (1p4n1u) 2480 | -8/Garrison | Triggered checkpoint 2481 | -8/Garrison | Core integrity fell below 20% 2584 | -8/Garrison | Triggered checkpoint 2591 | -8/Garrison | Destroyed by G-47 Trooper with Particle Gun Last Messages --------------- 02501_ Critical hit (Burn: +37). 02505_ G-47 Trooper destroyed. 02509_ Acquired 39 matter. 02510_ Acquired Imp. Heat Sink. 02512_ Acquired 38 matter. 02512_ Acquired Lgt. Nuclear Core. 02542_ Jacked G-47 Trooper... 02542_ Command string: reboot 02542_ No effect. 02545_ Authchip [R/NC] destroyed. 02545_ G-47 Trooper destroyed. 02547_ Acquired 40 matter. 02548_ Acquired Imp. Heat Sink. 02557_ Acquired Authchip [R/Combat]. 02566_ Acquired Lgt. Assault Rifle. 02567_ Dropped Imp. Datajack. 02568_ Acquired Imp. Datajack. 02575_ Connecting with Garrison Terminal... 02587_ Sneak attack on G-47 Trooper. 02587_ Flight Unit destroyed. Map ----- +----------------------------------------------------+ | ??????????? #??????????????????# #??????????? | | ??????????? #??????????????????# #??????????? | | ??????????? #??????????????????# #??????????? | | ??????????? ???????????????????# #??????????? | | ??????????? ???????????????????# #??????????? | | ??????????? ???????????????????# #??????????? | | ????????????????????????????????# #??????????? | | ????????????????????????????????# #??????##### | | ????????????????????????????????# ######## | | ????????????????????????????????# | | ????????????????????????????????# *! | | ????????????????????????????????########### [ # | | ????????????????????????????????????????###=[ # | | ????????????????????????????????????????# | | ????????????????????????????????????????# | | ????????????????????????????????????????# | | ????????????????????????????????????????# | | ????????????????????????????????????????### # | | ????????????????????????????????########### # | | ????????????????????????????????# | | ????????????????????????????????# | | ????????????????????????????????# #####T## | | ????????????????????????????????# #???##### # | | ??????????????#####?????????????# #???????? # | | ??????????????#"T"############### #???????? # | | ??????????????#" @ #???????? # | | ??????????????#########g######### #???????? # | | ?????????????????????? #???????# #???????? # | | ?????????????????????? #???????# #???????? # | | ????????????????????? #???????# ???????? # | | ?????????????????????## #???????# ???????? # | | ??????????????????????# #???????# ###???????## | | ??????????????????????# #???????# #??????????? | | ??????????????????????# #???????# #??????????? | | ??????????????????????? ????????? #??????????? | | ???????????????????????#????????? #??????????? | | ????????????????????????????????? #??????????? | | ????????????????????????????????? ???????????? | | ????????????????????????????????? ???????????? | | ????????????????????????????????? ???????????? | | ??????????????????????????????????????????????? | | ??????????????????????????????????????????????? | | ??????????????????????????????????????????????? | | ??????????????????????????????????????????????? | | ??????????????????????????????????????????????? | | ??????????????????????????????????????????????? | | ??????????????????????????????????????????????? | | ??????????????????????????????????????????????? | | ??????????????????????????????????????????????? | | ??????????????????????????????????????????????? | +----------------------------------------------------+ Best States ------------- Heat Dissipation 59 Energy Generation 27 Energy Capacity 450 Matter Stores 300 Matter Capacity 300 Sight Range 16 Terrain Scan Density 10 ECM Strength 1 Additional Mass Support 6 Evasion (%) 64 Melee Accuracy 5 Authchip Count 1 Item Schematics ----------------- None Robot Schematics ------------------ None Fabricated ------------ Nothing Alien Tech Used ----------------- None Achievements -------------- None Challenges ------------ None Game ------ Seed BombardmentAutogunPod Manual? 0 Play Time 00:56:12 Cumulative 16.8 hours Start 2024.04.09 @ 09:10:28 End 2024.04.09 @ 10:05:14 Sessions 1 Manual Loads 0 Difficulty Rogue Special Mode None Game No. 33 Rogue 33 Adventurer 0 Explorer 0 Win Type - Total 0 Types 0/0/0/0/0/0/0/0/0 Lore% 17 Gallery% 25 Achievement% 20 Wizard Run 0 Options --------- Layout 1 ASCII 0 Keyboard 1 Movement Arrows Keybinds 0 Fullscreen 1 Font 24/Smallcaps Map View 50x35 Zoom Use 0% Tactical HUD 1 Map Filters NONE Filters NONE Steam 1 RUN: 89f6f795-1de4-4648-90a2-49756bc5bde6